fUSD/lending_fUSD_20240616
["ID","MTS","AMOUNT","RATE_DAILY","PERIOD"]
[329625354,1718514704512,-500.0,0.00023013,3]
[329625355,1718514704551,-500.0,0.00023013,3]
[329625356,1718514704564,-500.0,0.00023013,3]
[329625357,1718514704593,-639.86,0.00023013,3]
[329625358,1718514704606,-500.0,0.00023013,3]
[329625359,1718514704622,-500.0,0.00023013,3]
[329625360,1718514704633,-252.05506618,0.00023013,3]
[329625361,1718514704644,-664.8,0.00023013,3]
[329625362,1718514704656,-500.0,0.00023013,3]
[329625363,1718514704671,-500.0,0.00023013,3]
[329625364,1718514704685,-190.27550834,0.00023013,3]
[329625365,1718514704712,-500.0,0.00023013,3]
[329625366,1718514704725,-1051.67,0.00023013,3]
[329625367,1718514704736,-961.09,0.00023013,3]
[329625368,1718514704749,-500.0,0.00023013,3]
[329625369,1718514704760,-500.0,0.00023013,3]
[329625370,1718514704772,-500.0,0.00023013,3]
[329625371,1718514704789,-500.0,0.00023013,3]
[329625372,1718514704801,-500.0,0.00023013,3]
[329625373,1718514704814,-1195.84,0.00023013,3]
[329625374,1718514704824,-500.0,0.00023013,3]
[329625375,1718514704853,-500.0,0.00023013,3]
[329625376,1718514704876,-379.81074208,0.00023013,3]
[329625377,1718514704887,-500.0,0.00023013,3]
[329625378,1718514704909,-770.75,0.00023013,3]
[329625379,1718514704919,-500.0,0.00023013,3]
[329625380,1718514704948,-893.17,0.00023013,3]
[329625381,1718514704966,-500.0,0.00023013,3]
[329625382,1718514704977,-500.0,0.00023013,3]
[329625383,1718514705008,-886.11,0.00023013,3]
[329625384,1718514705025,-500.0,0.00023013,3]
[329625385,1718514705052,-618.77,0.00023013,3]
[329625386,1718514705072,-531.07215467,0.00023013,3]
[329625387,1718514705083,-500.0,0.00023013,3]
[329625388,1718514705103,-513.8492481,0.00023013,3]
[329625389,1718514705127,-500.0,0.00023013,3]
[329625390,1718514705146,-500.0,0.00023013,3]
[329625391,1718514705160,-985.78,0.00023013,3]
[329625392,1718514705195,-500.0,0.00023013,3]
[329625393,1718514705208,-835.26,0.00023013,3]
[329625394,1718514705233,-513.36,0.00023013,3]
[329625395,1718514705247,-500.0,0.00023013,3]
[329625396,1718514705285,-500.0,0.00023013,3]
[329625397,1718514705298,-568.54469937,0.00023013,3]
[329625398,1718514705317,-501.85,0.00023013,3]
[329625399,1718514705330,-989.9,0.00023013,3]
[329625400,1718514705359,-500.0,0.00023013,3]
[329625401,1718514705372,-500.0,0.00023013,3]
[329625402,1718514705389,-587.73549158,0.00023013,3]
[329625403,1718514705403,-572.39,0.00023013,3]
[329625404,1718514705420,-500.0,0.00023013,3]
[329625405,1718514705440,-500.0,0.00023013,3]
[329625406,1718514705453,-500.0,0.00023013,3]
[329625407,1718514705465,-634.14,0.00023013,3]
[329625408,1718514705477,-500.0,0.00023013,3]
[329625409,1718514705491,-500.0,0.00023013,3]
[329625410,1718514705515,-500.0,0.00023013,3]
[329625411,1718514705531,-610.07442841,0.00023013,3]
[329625412,1718514705552,-500.0,0.00023013,3]
[329625413,1718514705564,-508.55,0.00023013,3]
[329625414,1718514705579,-578.78,0.00023013,3]
[329625415,1718514705590,-500.0,0.00023013,3]
[329625416,1718514705622,-586.95910828,0.00023013,3]
[329625417,1718514705635,-598.16672769,0.00023013,3]
[329625418,1718514705655,-500.0,0.00023013,3]
[329625419,1718514705700,-623.1,0.00023013,3]
[329625420,1718514705714,-500.0,0.00023013,3]
[329625421,1718514705729,-500.0,0.00023013,3]
[329625422,1718514705741,-627.2082061,0.00023013,3]
[329625423,1718514705764,-615.25938558,0.00023013,3]
[329625424,1718514705789,-558.36,0.00023013,3]
[329625425,1718514705837,-500.0,0.00023013,3]
[329625426,1718514705869,-500.0,0.00023013,3]
[329625427,1718514705914,-692.22,0.00023013,3]
[329625428,1718514705943,-500.0,0.00023013,3]
[329625429,1718514705963,-500.0,0.00023013,3]
[329625430,1718514706001,-500.0,0.00023013,3]
[329625431,1718514706017,-679.49,0.00023013,3]
[329625432,1718514706056,-500.0,0.00023013,3]
[329625433,1718514706088,-546.36,0.00023013,3]
[329625434,1718514706120,-500.0,0.00023013,3]
[329625435,1718514706132,-500.0,0.00023013,3]
[329625436,1718514706147,-500.0,0.00023013,3]
[329625437,1718514706182,-500.0,0.00023013,3]
[329625438,1718514706197,-500.0,0.00023013,3]
[329625439,1718514706239,-500.0,0.00023013,3]
[329625440,1718514706264,-500.0,0.00023013,3]
[329625441,1718514706297,-500.0,0.00023013,3]
[329625442,1718514706323,-513.26047502,0.00023013,3]
[329625443,1718514706352,-500.0,0.00023013,3]
[329625444,1718514706373,-611.71,0.00023013,3]
[329625445,1718514706385,-500.0,0.00023013,3]
[329625446,1718514706406,-500.0,0.00023013,3]
[329625447,1718514706428,-1146.72,0.00023013,3]
[329625448,1718514706440,-500.0,0.00023013,3]
[329625449,1718514706453,-500.0,0.00023013,3]
[329625450,1718514706468,-500.0,0.00023013,3]
[329625451,1718514706485,-500.0,0.00023013,3]
[329625452,1718514706521,-500.0,0.00023013,3]
[329625453,1718514706560,-500.0,0.00023013,3]
[329625454,1718514706576,-500.0,0.00023013,3]
[329625455,1718514706588,-293.9661525,0.00023013,3]
[329625456,1718514706600,-898.73,0.00023013,3]
[329625457,1718514706611,-500.0,0.00023013,3]
[329625458,1718514706627,-500.0,0.00023013,3]
[329625459,1718514706667,-607.26,0.00023013,3]
[329625460,1718514706679,-778.55,0.00023013,3]
[329625461,1718514706693,-500.0,0.00023013,3]
[329625462,1718514706746,-500.0,0.00023013,3]
[329625463,1718514706776,-500.0,0.00023013,3]
[329625464,1718514706790,-510.7,0.00023013,3]
[329625465,1718514706814,-500.0,0.00023013,3]
[329625466,1718514706840,-738.65,0.00023013,3]
[329625467,1718514706851,-535.17062096,0.00023013,3]
[329625468,1718514706881,-595.17,0.00023013,3]
[329625469,1718514706909,-698.26,0.00023013,3]
[329625470,1718514706925,-524.41828639,0.00023013,3]
[329625471,1718514706941,-500.0,0.00023013,3]
[329625472,1718514706953,-500.0,0.00023013,3]
[329625473,1718514706968,-500.0,0.00023013,3]
[329625474,1718514706980,-500.0,0.00023013,3]
[329625475,1718514707271,-500.0,0.00023013,3]
[329625476,1718514707292,-500.0,0.00023013,3]
[329625477,1718514707321,-500.0,0.00023013,3]
[329625478,1718514707344,-500.0,0.00023013,3]
[329625479,1718514707358,-500.0,0.00023013,3]
[329625480,1718514707372,-500.0,0.00023013,3]
[329625481,1718514707389,-742.17,0.00023013,3]
[329625482,1718514707405,-832.09,0.00023013,3]
[329625483,1718514707417,-500.0,0.00023013,3]
[329625484,1718514707436,-500.0,0.00023013,3]
[329625485,1718514707464,-500.0,0.00023013,3]
[329625486,1718514707494,-500.0,0.00023013,3]
[329625487,1718514707510,-669.49,0.00023013,3]
[329625488,1718514707532,-500.0,0.00023013,3]
[329625489,1718514707554,-500.0,0.00023013,3]
[329625490,1718514707600,-500.0,0.00023013,3]
[329625491,1718514707614,-847.82,0.00023013,3]
[329625492,1718514707633,-984.98,0.00023013,3]
[329625493,1718514707653,-500.0,0.00023013,3]
[329625494,1718514707672,-500.0,0.00023013,3]
[329625495,1718514707686,-500.0,0.00023013,3]
[329625496,1718514707722,-500.0,0.00023013,3]
[329625497,1718514707757,-500.0,0.00023013,3]
[329625498,1718514707769,-500.0,0.00023013,2]
[329625499,1718514707786,-500.0,0.00023013,3]
[329625500,1718514707805,-652.56,0.00023013,3]
[329625501,1718514707819,-500.0,0.00023013,3]
[329625502,1718514707833,-500.0,0.00023013,3]
[329625503,1718514707845,-500.0,0.00023013,3]
[329625504,1718514707860,-500.0,0.00023013,3]
[329625505,1718514707873,-500.0,0.00023013,3]
[329625506,1718514707892,-500.0,0.00023013,3]
[329625507,1718514707904,-843.09,0.00023013,3]
[329625508,1718514707919,-500.0,0.00023013,3]
[329625509,1718514707940,-535.33,0.00023013,3]
[329625510,1718514707954,-1201.34,0.00023013,3]
[329625511,1718514707974,-500.0,0.00023013,3]
[329625512,1718514707992,-909.26,0.00023013,3]
[329625513,1718514708016,-500.0,0.00023013,3]
[329625514,1718514708036,-500.0,0.00023013,3]
[329625515,1718514708048,-500.0,0.00023013,3]
[329625516,1718514708062,-1002.88,0.00023013,3]
[329625517,1718514708076,-500.0,0.00023013,3]
[329625518,1718514708112,-500.0,0.00023013,3]
[329625519,1718514708125,-778.38,0.00023013,3]
[329625520,1718514708160,-500.0,0.00023013,3]
[329625521,1718514708174,-500.0,0.00023013,3]
[329625522,1718514708200,-500.0,0.00023013,3]
[329625523,1718514708213,-500.0,0.00023013,3]
[329625524,1718514708231,-500.0,0.00023013,3]
[329625525,1718514708244,-1202.7,0.00023013,3]
[329625526,1718514708262,-500.0,0.00023013,3]
[329625527,1718514708278,-500.0,0.00023013,3]
[329625528,1718514708290,-776.34,0.00023013,3]
[329625529,1718514708324,-500.0,0.00023013,3]
[329625530,1718514708355,-500.0,0.00023013,3]
[329625531,1718514708373,-500.0,0.00023013,3]
[329625532,1718514708390,-544.11,0.00023013,3]
[329625533,1718514708401,-500.0,0.00023013,3]
[329625534,1718514708413,-527.2,0.00023013,3]
[329625535,1718514708443,-500.0,0.00023013,3]
[329625536,1718514708455,-500.0,0.00023013,3]
[329625537,1718514708466,-500.0,0.00023013,3]
[329625538,1718514708478,-675.42,0.00023013,3]
[329625539,1718514708489,-500.0,0.00023013,7]
[329625540,1718514708500,-432.56019648,0.00023013,3]
[329625541,1718514708513,-500.0,0.00023013,3]
[329625542,1718514708525,-500.0,0.00023013,3]
[329625543,1718514708535,-500.0,0.00023013,3]
[329625544,1718514708546,-500.0,0.00023013,3]
[329625545,1718514708558,-500.0,0.00023013,3]
[329625546,1718514708570,-500.0,0.00023013,3]
[329625547,1718514708581,-500.0,0.00023013,3]
[329625548,1718514708600,-500.0,0.00023013,3]
[329625549,1718514708611,-343.84,0.00023013,3]
[329625550,1718514708623,-500.0,0.00023013,3]
[329625551,1718514708635,-500.0,0.00023013,3]
[329625552,1718514708647,-500.0,0.00023013,3]
[329625553,1718514708668,-500.0,0.00023013,3]
[329625554,1718514708681,-1832.91,0.00023013,3]
[329625555,1718514708697,-500.0,0.00023013,3]
[329625556,1718514708717,-500.0,0.00023013,3]
[329625557,1718514708734,-567.88,0.00023013,3]
[329625558,1718514708764,-551.74,0.00023013,3]
[329625559,1718514708775,-500.0,0.00023013,3]
[329625560,1718514708788,-500.0,0.00023013,3]
[329625561,1718514708816,-901.11,0.00023013,3]
[329625562,1718514708829,-681.26,0.00023013,3]
[329625563,1718514708860,-500.0,0.00023013,3]
[329625564,1718514708908,-500.0,0.00023013,3]
[329625565,1718514708922,-500.0,0.00023013,3]
[329625566,1718514708935,-726.69,0.00023013,3]
[329625567,1718514708950,-500.0,0.00023013,3]
[329625568,1718514708964,-3304.19,0.00023013,3]
[329625569,1718514708980,-545.46,0.00023013,3]
[329625570,1718514708996,-736.37,0.00023013,3]
[329625571,1718514709012,-500.0,0.00023013,3]
[329625572,1718514709023,-500.0,0.00023013,3]
[329625573,1718514709049,-500.0,0.00023013,3]
[329625574,1718514709065,-500.0,0.00023013,3]
[329625575,1718514709090,-500.0,0.00023013,3]
[329625576,1718514709110,-500.0,0.00023013,3]
[329625577,1718514709133,-500.0,0.00023013,3]
[329625578,1718514709158,-500.0,0.00023013,3]
[329625579,1718514709173,-500.0,0.00023013,3]
[329625580,1718514709189,-500.0,0.00023013,3]
[329625581,1718514709209,-997.85,0.00023013,3]
[329625582,1718514709232,-14230.41,0.00023013,3]
[329625583,1718514709244,-500.0,0.00023013,3]
[329625584,1718514709264,-530.5,0.00023013,3]
[329625585,1718514709282,-1006.75,0.00023013,3]
[329625586,1718514709295,-500.0,0.00023013,3]
[329625587,1718514709306,-500.0,0.00023013,3]
[329625588,1718514709322,-500.0,0.00023013,3]
[329625589,1718514709335,-500.0,0.00023013,3]
[329625590,1718514709347,-500.0,0.00023013,3]
[329625591,1718514709361,-500.0,0.00023013,3]
[329625592,1718514709400,-1157.82,0.00023013,3]
[329625593,1718514709424,-500.0,0.00023013,3]
[329625594,1718514709439,-759.3,0.00023013,3]
[329625595,1718514709461,-500.0,0.00023013,3]
[329625596,1718514709481,-500.0,0.00023013,3]
[329625597,1718514709495,-500.0,0.00023013,3]
[329625598,1718514709519,-566.27,0.00023013,3]
[329625599,1718514709537,-674.57,0.00023013,3]
[329625600,1718514709550,-500.0,0.00023013,3]
[329625601,1718514709566,-1539.31,0.00023013,3]
[329625602,1718514709577,-943.14,0.00023013,3]
[329625603,1718514709600,-500.0,0.00023013,3]
[329625604,1718514709629,-659.14,0.00023013,3]
[329625605,1718514709644,-500.0,0.00023013,3]
[329625606,1718514709663,-500.0,0.00023013,3]
[329625607,1718514709679,-500.0,0.00023013,3]
[329625608,1718514709719,-560.32,0.00023013,3]
[329625609,1718514709732,-614.56,0.00023013,3]
[329625610,1718514709748,-500.0,0.00023013,3]
[329625611,1718514709760,-500.0,0.00023013,3]
[329625612,1718514709780,-7764.92,0.00023013,3]
[329625613,1718514709794,-557.31,0.00023013,3]
[329625614,1718514709807,-552.59,0.00023013,3]
[329625615,1718514709846,-661.73,0.00023013,3]
[329625616,1718514709859,-611.43,0.00023013,3]
[329625617,1718514709870,-674.64,0.00023013,3]
[329625618,1718514709882,-1729.68,0.00023013,3]
[329625619,1718514709893,-500.0,0.00023013,3]
[329625620,1718514709915,-500.0,0.00023013,3]
[329625621,1718514709926,-1354.36,0.00023013,3]
[329625622,1718514709962,-604.17,0.00023013,3]
[329625623,1718514709979,-664.59,0.00023013,3]
[329625624,1718514710005,-10271.42,0.00023013,3]
[329625625,1718514710041,-500.0,0.00023013,3]
[329625626,1718514710073,-900.1,0.00023013,3]
[329625627,1718514710099,-500.0,0.00023013,3]
[329625628,1718514710120,-500.0,0.00023013,3]
[329625629,1718514710131,-500.0,0.00023013,3]
[329625630,1718514710145,-818.66,0.00023013,3]
[329625631,1718514710157,-500.0,0.00023013,3]
[329625632,1718514710168,-500.0,0.00023013,3]
[329625633,1718514710179,-1612.07,0.00023013,3]
[329625634,1718514710189,-1755.9,0.00023013,3]
[329625635,1718514710200,-611.26,0.00023013,3]
[329625636,1718514710211,-500.0,0.00023013,3]
[329625637,1718514710223,-1606.26,0.00023013,3]
[329625638,1718514710235,-4378.33,0.00023013,3]
[329625639,1718514710255,-500.0,0.00023013,3]
[329625640,1718514710275,-500.0,0.00023013,3]
[329625641,1718514710290,-4916.83,0.00023013,3]
[329625642,1718514710301,-2853.1,0.00023013,3]
[329625643,1718514710315,-500.0,0.00023013,3]
[329625644,1718514710328,-1035.35,0.00023013,3]
[329625645,1718514710339,-500.0,0.00023013,3]
[329625646,1718514710351,-869.12,0.00023013,3]
[329625647,1718514710362,-567.1,0.00023013,3]
[329625648,1718514710388,-578.11,0.00023013,3]
[329625649,1718514710400,-500.0,0.00023013,3]
[329625650,1718514710417,-500.0,0.00023013,3]
[329625651,1718514710444,-1538.82,0.00023013,3]
[329625652,1718514710455,-2296.48,0.00023013,3]
[329625653,1718514710477,-763.71,0.00023013,3]
[329625654,1718514710489,-1775.07,0.00023013,3]
[329625655,1718514710515,-500.0,0.00023013,3]
[329625656,1718514710527,-964.71,0.00023013,3]
[329625657,1718514710538,-500.0,0.00023013,3]
[329625658,1718514710550,-895.78,0.00023013,3]
[329625659,1718514710561,-642.17,0.00023013,3]
[329625660,1718514710572,-636.93,0.00023013,3]
[329625661,1718514710584,-2443.29,0.00023013,3]
[329625662,1718514710603,-500.0,0.00023013,3]
[329625663,1718514710617,-1515.42,0.00023013,3]
[329625664,1718514710636,-1004.46,0.00023013,3]
[329625665,1718514710654,-1070.36,0.00023013,3]
[329625666,1718514710666,-803.03,0.00023013,3]
[329625667,1718514710689,-923.04,0.00023013,3]
[329625668,1718514710700,-500.0,0.00023013,3]
[329625669,1718514710712,-500.0,0.00023013,3]
[329625670,1718514710723,-593.8,0.00023013,3]
[329625671,1718514710733,-797.61,0.00023013,3]
[329625672,1718514710744,-500.0,0.00023013,3]
[329625673,1718514710756,-588.71,0.00023013,3]
[329625674,1718514710768,-500.0,0.00023013,3]
[329625675,1718514710784,-500.0,0.00023013,3]
[329625676,1718514710798,-2230.64,0.00023013,3]
[329625677,1718514710809,-1061.13,0.00023013,3]
[329625678,1718514710829,-500.0,0.00023013,3]
[329625679,1718514710841,-500.0,0.00023013,3]
[329625680,1718514710880,-9618.01,0.00023013,3]
[329625681,1718514710892,-500.0,0.00023013,3]
[329625682,1718514710918,-500.0,0.00023013,3]
[329625683,1718514710936,-500.0,0.00023013,3]
[329625684,1718514710947,-2383.54,0.00023013,3]
[329625685,1718514710960,-500.0,0.00023013,3]
[329625686,1718514710971,-523.98344981,0.00023013,3]
[329625687,1718514710982,-500.0,0.00023013,3]
[329625688,1718514710994,-860.94,0.00023013,3]
[329625689,1718514711007,-792.78,0.00023013,3]
[329625690,1718514711033,-4216.59,0.00023013,3]
[329625691,1718514711066,-858.57,0.00023013,3]
[329625692,1718514711080,-2109.27,0.00023013,3]
[329625693,1718514711120,-567.07,0.00023013,3]
[329625694,1718514711131,-500.0,0.00023013,3]
[329625695,1718514711142,-1037.47,0.00023013,3]
[329625696,1718514711200,-1400.62,0.00023013,3]
[329625697,1718514711232,-1574.3,0.00023013,3]
[329625698,1718514711244,-500.0,0.00023013,3]
[329625699,1718514711268,-500.0,0.00023013,3]
[329625700,1718514711288,-2771.95,0.00023013,3]
[329625701,1718514711315,-500.0,0.00023013,3]
[329625702,1718514711348,-3713.47,0.00023013,3]
[329625703,1718514711361,-534.45,0.00023013,3]
[329625704,1718514711375,-1420.21,0.00023013,3]
[329625705,1718514711389,-500.0,0.00023013,3]
[329625706,1718514711404,-500.0,0.00023013,3]
[329625707,1718514711442,-500.0,0.00023013,3]
[329625708,1718514711481,-1310.36,0.00023013,3]
[329625709,1718514711503,-500.0,0.00023013,3]
[329625710,1718514711522,-633.25,0.00023013,3]
[329625711,1718514711547,-1378.93,0.00023013,3]
[329625712,1718514711564,-790.92,0.00023013,3]
[329625713,1718514711581,-851.88,0.00023013,3]
[329625714,1718514711598,-500.0,0.00023013,3]
[329625715,1718514711647,-2966.95,0.00023013,3]
[329625716,1718514711667,-636.09,0.00023013,3]
[329625717,1718514711751,-712.87,0.00023013,3]
[329625718,1718514711762,-500.0,0.00023013,3]
[329625719,1718514711792,-827.77,0.00023013,3]
[329625720,1718514711812,-2232.36,0.00023013,3]
[329625721,1718514711838,-860.52,0.00023013,3]
[329625722,1718514711861,-2707.96,0.00023013,3]
[329625723,1718514711876,-614.18,0.00023013,3]
[329625724,1718514711888,-500.0,0.00023013,3]
[329625725,1718514711917,-2212.02,0.00023013,3]
[329625726,1718514711949,-500.0,0.00023013,3]
[329625727,1718514711973,-703.42,0.00023013,3]
[329625728,1718514711984,-721.36,0.00023013,3]
[329625729,1718514712012,-500.0,0.00023013,3]
[329625730,1718514712041,-500.0,0.00023013,3]
[329625731,1718514712060,-4360.28,0.00023013,3]
[329625732,1718514712073,-2177.96,0.00023013,3]
[329625733,1718514712084,-500.0,0.00023013,3]
[329625734,1718514712098,-1356.14,0.00023013,3]
[329625735,1718514712119,-500.0,0.00023013,3]
[329625736,1718514712139,-616.76311262,0.00023013,3]
[329625737,1718514712159,-500.0,0.00023013,3]
[329625738,1718514712174,-749.56,0.00023013,3]
[329625739,1718514712196,-500.0,0.00023013,3]
[329625740,1718514712216,-1848.29,0.00023013,3]
[329625741,1718514712235,-500.0,0.00023013,3]
[329625742,1718514712251,-1211.0,0.00023013,3]
[329625743,1718514712267,-666.51,0.00023013,3]
[329625744,1718514712279,-1213.86,0.00023013,3]
[329625745,1718514712296,-578.68,0.00023013,3]
[329625746,1718514712308,-583.95,0.00023013,3]
[329625747,1718514712320,-2709.96,0.00023013,3]
[329625748,1718514712340,-500.0,0.00023013,3]
[329625749,1718514712353,-500.0,0.00023013,3]
[329625750,1718514712363,-578.04,0.00023013,3]
[329625751,1718514712379,-795.69,0.00023013,3]
[329625752,1718514712391,-1483.55,0.00023013,3]
[329625753,1718514712402,-790.88,0.00023013,3]
[329625754,1718514712413,-1309.75,0.00023013,3]
[329625755,1718514712435,-500.0,0.00023013,3]
[329625756,1718514712452,-500.0,0.00023013,3]
[329625757,1718514712480,-555.11,0.00023013,3]
[329625758,1718514712492,-500.0,0.00023013,3]
[329625759,1718514712503,-1243.88,0.00023013,3]
[329625760,1718514712516,-3595.59,0.00023013,3]
[329625761,1718514712529,-500.0,0.00023013,3]
[329625762,1718514712543,-500.0,0.00023013,3]
[329625763,1718514712557,-1564.83,0.00023013,3]
[329625764,1718514712571,-1006.94,0.00023013,3]
[329625765,1718514712582,-500.0,0.00023013,3]
[329625766,1718514712594,-1366.9,0.00023013,3]
[329625767,1718514712620,-500.0,0.00023013,3]
[329625768,1718514712648,-500.0,0.00023013,3]
[329625769,1718514712660,-799.86,0.00023013,3]
[329625770,1718514712675,-523.6,0.00023013,3]
[329625771,1718514712687,-500.0,0.00023013,3]
[329625772,1718514712709,-729.35,0.00023013,3]
[329625773,1718514712724,-513.63137517,0.00023013,3]
[329625774,1718514712746,-2013.29,0.00023013,3]
[329625775,1718514712757,-500.0,0.00023013,3]
[329625776,1718514712796,-989.7,0.00023013,3]
[329625777,1718514712829,-1202.1,0.00023013,3]
[329625778,1718514712840,-1512.39,0.00023013,3]
[329625779,1718514712873,-500.0,0.00023013,3]
[329625780,1718514712901,-500.0,0.00023013,3]
[329625781,1718514712915,-500.0,0.00023013,3]
[329625782,1718514712937,-898.42,0.00023013,3]
[329625783,1718514712966,-680.39,0.00023013,3]
[329625784,1718514712997,-500.0,0.00023013,3]
[329625785,1718514713034,-651.97,0.00023013,3]
[329625786,1718514713066,-525.67,0.00023013,3]
[329625787,1718514713082,-500.0,0.00023013,3]
[329625788,1718514713112,-1084.0,0.00023013,3]
[329625789,1718514713124,-1217.87,0.00023013,3]
[329625790,1718514713144,-4820.64,0.00023013,3]
[329625791,1718514713167,-1818.54,0.00023013,3]
[329625792,1718514713187,-633.1,0.00023013,3]
[329625793,1718514713220,-539.58818188,0.00023013,3]
[329625794,1718514713321,-2630.9,0.00023013,3]
[329625795,1718514713333,-1495.18,0.00023013,3]
[329625796,1718514713354,-500.78,0.00023013,3]
[329625797,1718514713373,-1510.03,0.00023013,3]
[329625798,1718514713391,-1076.28,0.00023013,3]
[329625799,1718514713406,-500.0,0.00023013,3]
[329625800,1718514713426,-500.0,0.00023013,3]
[329625801,1718514713447,-1023.85,0.00023013,3]
[329625802,1718514713469,-500.0,0.00023013,3]
[329625803,1718514713480,-514.32,0.00023013,3]
[329625804,1718514713516,-801.98,0.00023013,3]
[329625805,1718514713529,-500.0,0.00023013,3]
[329625806,1718514713561,-526.07,0.00023013,3]
[329625807,1718514713577,-5728.5,0.00023013,3]
[329625808,1718514713589,-501.51,0.00023013,3]
[329625809,1718514713603,-1246.39,0.00023013,3]
[329625810,1718514713632,-12175.18,0.00023013,3]
[329625811,1718514713644,-1613.0,0.00023013,3]
[329625812,1718514713668,-512.97475771,0.00023013,3]
[329625813,1718514713681,-1529.61,0.00023013,3]
[329625814,1718514713696,-918.72,0.00023013,3]
[329625815,1718514713706,-2489.26,0.00023013,3]
[329625816,1718514713728,-771.85,0.00023013,3]
[329625817,1718514713756,-500.0,0.00023013,3]
[329625818,1718514713776,-500.0,0.00023013,3]
[329625819,1718514713800,-152.0,0.00023018,5]
[329625820,1718514713837,-851.72,0.00023098,2]
[329625821,1718514713847,-417.85,0.00023098,2]
[329625822,1718514713861,-378.092061,0.000231,2]
[329625823,1718514713903,-14649.26280232,0.00023105,2]
[329625824,1718514713928,-200.0,0.0002318,2]
[329625825,1718514713949,-150.0,0.000232,3]
[329625826,1718514713980,-150.0,0.000232,3]
[329625827,1718514713993,-152.0,0.00023236,6]
[329625828,1718514714019,-198.0,0.00023257,15]
[329625829,1718514714050,-198.0,0.00023267,15]
[329625830,1718514714064,-48883.0602098,0.00023271,2]
[329625831,1718514714079,-4062.9655535,0.00023271,2]
[329625832,1718514714095,-15805.6486552,0.00023271,2]
[329625833,1718514714119,-415.129113,0.00023271,2]
[329625834,1718514714135,-31220.4874257,0.00023271,2]
[329625835,1718514714152,-198.0,0.00023277,15]
[329625836,1718514714168,-500.0,0.00023287,3]
[329625837,1718514714184,-500.0,0.00023287,3]
[329625838,1718514714201,-500.0,0.00023287,3]
[329625839,1718514714213,-500.0,0.00023287,3]
[329625840,1718514714229,-500.0,0.00023287,3]
[329625841,1718514714243,-500.0,0.00023287,3]
[329625842,1718514714256,-500.0,0.00023287,3]
[329625843,1718514714280,-500.0,0.00023287,3]
[329625844,1718514714293,-500.0,0.00023287,3]
[329625845,1718514714306,-500.0,0.00023287,3]
[329625846,1718514714327,-500.0,0.00023287,3]
[329625847,1718514714340,-500.0,0.00023287,3]
[329625848,1718514714351,-500.0,0.00023287,3]
[329625849,1718514714369,-500.0,0.00023287,3]
[329625850,1718514714383,-504.85213621,0.00023287,3]
[329625851,1718514714400,-500.0,0.00023287,3]
[329625852,1718514714413,-1006.68,0.00023287,3]
[329625853,1718514714425,-810.35,0.00023287,3]